bitfinex-derivatives/quotes_BNBF0:USTF0_20250510
["timestamp","ask_amount","ask_price","bid_price","bid_amount"]
[1746884226010,0.30559078,654.47,652.94,0.26603674]
[1746884226212,0.30559078,654.47,652.99,0.974469]
[1746884226808,0.30559078,654.47,653.0,0.27102687]
[1746884228113,0.30559078,654.47,653.0,0.57730558]
[1746884228612,0.30559078,654.47,653.01,1.24549587]
[1746884228906,0.30559078,654.47,653.02,0.27102687]
[1746884233114,0.30559078,654.47,653.07,0.974469]
[1746884233718,0.30559078,654.47,653.08,0.27102687]
[1746884236321,0.30559078,654.47,653.01,0.27102687]
[1746884247326,0.30559078,654.47,653.0,0.57220161]
[1746884247727,0.30559078,654.47,653.01,0.27091462]
[1746884248728,0.30559078,654.47,653.04,0.974469]
[1746884249228,0.30559078,654.47,653.05,0.27091462]
[1746884250829,0.30559078,654.47,653.08,0.974469]
[1746884251529,0.30559078,654.47,653.09,0.27091462]
[1746884252331,0.30559078,654.47,653.18,0.974469]
[1746884252830,0.30559078,654.47,653.19,0.27091462]
[1746884255232,0.30559078,654.47,653.21,0.974469]
[1746884255527,0.30559078,654.47,653.22,0.27091462]
[1746884258137,0.30559078,654.47,653.18,0.27091462]
[1746884259336,0.30559078,654.47,653.17,0.974469]
[1746884259637,0.30559078,654.47,653.18,0.2709577]
[1746884260136,0.30559078,654.47,653.19,0.974469]
[1746884260332,0.30559078,654.47,653.2,0.2709577]
[1746884262736,0.30559078,654.47,653.17,0.2709577]
[1746884263032,0.30559078,654.47,653.16,0.2709577]
[1746884263835,0.30559078,654.47,653.16,0.53688365]
[1746884264235,0.30559078,654.47,653.17,0.2709577]
[1746884266136,0.30559078,654.47,653.1,0.2709577]
[1746884266537,0.30559078,654.47,653.11,0.26595948]
[1746884266731,0.30559078,654.47,653.12,0.2709577]
[1746884269137,0.30559078,654.47,653.11,0.26603572]
[1746884269339,0.30559078,654.47,653.12,0.2709577]
[1746884269933,0.30559078,654.47,653.11,0.26603572]
[1746884270441,0.30559078,654.47,653.12,0.27122019]
[1746884274942,0.30559078,654.47,653.01,0.27122019]
[1746884275142,0.30559078,654.47,653.2,0.974469]
[1746884275643,0.30559078,654.47,653.21,0.27122019]
[1746884278043,0.30559078,654.47,653.16,0.27122019]
[1746884290152,0.30559078,654.47,653.15,0.26579596]
[1746884290452,0.30559078,654.47,653.16,0.27122019]
[1746884293150,0.30559078,654.47,653.15,0.26592798]
[1746884293751,0.30559078,654.47,653.16,0.27122019]
[1746884299054,0.30559078,654.47,653.03,0.27122019]
[1746884299954,0.30559078,654.47,653.04,0.26578175]
[1746884300755,0.30559078,654.47,653.05,0.27122019]
[1746884301250,0.30559078,654.47,653.04,0.26578175]
[1746884301656,0.30559078,654.47,653.05,0.27103029]
[1746884302054,0.30559078,654.47,653.03,0.27103029]
[1746884302859,0.30559078,654.47,653.04,0.26578581]
[1746884303656,0.30559078,654.47,653.05,0.27084488]
[1746884305159,0.30559078,654.47,653.03,0.27084488]
[1746884305857,0.30559078,654.47,653.04,0.26581321]
[1746884306358,0.30559078,654.47,653.05,0.27084488]
[1746884307561,0.30559078,654.47,653.22,0.974469]
[1746884308256,0.30559078,654.47,653.23,0.27095212]
[1746884309658,0.30559078,654.47,653.27,0.974469]
[1746884309962,0.29000717,654.47,653.27,0.974469]
[1746884310162,0.29000717,654.47,653.28,0.27095212]
[1746884312258,0.29000717,654.47,653.24,0.27095212]
[1746884314062,0.29000717,654.47,653.15,0.27095212]
[1746884315958,0.29000717,654.47,653.16,0.27095212]
[1746884316365,0.29000717,654.47,653.17,0.27095212]
[1746884316859,0.29000717,654.47,653.18,0.27095212]
[1746884317265,0.29000717,654.47,653.19,0.27095212]
[1746884317663,0.29000717,654.47,653.2,0.27095212]
[1746884317862,0.29000717,654.47,653.59,0.974469]
[1746884318360,0.29000717,654.47,653.6,0.27095212]
[1746884318567,0.29000717,654.47,653.59,0.974469]
[1746884318963,0.29000717,654.47,653.6,0.27000445]
[1746884320472,0.29000717,654.47,653.54,0.27000445]
[1746884322572,0.29000717,654.47,653.45,0.27000445]
[1746884325175,0.29000717,654.47,653.38,0.26581118]
[1746884325376,0.29000717,654.47,653.39,0.27005891]
[1746884326075,0.29000717,654.47,653.38,0.26572492]
[1746884326473,0.29000717,654.47,653.39,0.27005891]
[1746884329077,0.29000717,654.47,653.38,0.26571072]
[1746884329476,0.29000717,654.47,653.39,0.27005891]
[1746884332183,0.29000717,654.47,653.38,0.2657919]
[1746884332583,0.29000717,654.47,653.39,0.27005891]
[1746884341192,0.29000717,654.47,653.36,0.27005891]
[1746884342093,0.29000717,654.47,653.37,0.26570362]
[1746884342293,0.29000717,654.47,653.38,0.974469]
[1746884342694,0.29000717,654.47,653.39,0.27005891]
[1746884343896,0.29000717,654.47,653.38,0.974469]
[1746884344296,0.29000717,654.47,653.39,0.27005581]
[1746884344696,0.29000717,654.47,653.43,0.974469]
[1746884345197,0.29000717,654.47,653.44,0.27005581]
[1746884347398,0.29000717,654.47,653.46,0.974469]
[1746884347898,0.29000717,654.47,653.47,0.27005581]
[1746884350104,0.29000717,654.47,653.54,0.974469]
[1746884350502,0.29000717,654.47,653.55,0.27005581]
[1746884352305,0.29000717,654.47,653.65,0.974469]
[1746884352503,0.29000717,654.47,653.66,0.27005581]
[1746884354107,0.26573913,655.21,653.66,0.27005581]
[1746884356710,1.96481199,655.93,653.66,0.27005581]
[1746884357010,0.26571275,655.33,653.66,0.27005581]
[1746884357311,0.28067334,655.32,653.66,0.27005581]
[1746884357811,0.26571275,655.33,653.66,0.27005581]
[1746884358005,0.28067334,655.32,653.66,0.27005581]
[1746884358907,0.28067334,655.32,653.55,0.27005581]
[1746884359211,0.28067334,656.41,653.32,0.27005581]
[1746884359513,0.28067334,656.4,653.32,0.27005581]
[1746884359810,0.28067334,656.39,653.32,0.27005581]
[1746884360014,0.54636073,656.39,653.33,0.26568739]
[1746884360307,1.96481199,656.01,653.56,0.974469]
[1746884360611,0.85902048,656.0,653.57,0.27005581]
[1746884361011,0.28067334,655.99,653.57,0.27005581]
[1746884361609,0.28067334,655.98,653.57,0.27005581]
[1746884362007,0.28067334,655.97,653.57,0.27005581]
[1746884362413,0.28067334,655.96,653.57,0.27005581]
[1746884362614,1.96481199,655.92,653.62,0.974469]
[1746884363112,0.85902048,655.91,653.63,0.27005581]
[1746884363408,0.28067334,655.9,653.63,0.27005581]
[1746884363713,0.28067334,655.89,653.63,0.27005581]
[1746884365315,0.28067334,655.88,653.63,0.27005581]
[1746884365515,1.96481199,655.9,653.62,0.974469]
[1746884365914,1.12476967,655.89,653.63,0.27025688]
[1746884366109,0.30498032,655.78,653.63,0.27025688]
[1746884366614,0.30498032,655.78,653.57,0.974469]
[1746884366915,0.28068016,655.77,653.58,0.27025764]
[1746884367216,0.30503149,655.67,653.58,0.27025764]
[1746884367516,0.28068016,655.66,653.58,0.27025764]
[1746884367715,0.30508267,655.56,653.58,0.27025764]
[1746884368717,0.28068016,655.55,653.58,0.27025764]
[1746884368910,0.30509663,655.53,653.58,0.27025764]
[1746884369217,0.28068016,655.52,653.58,0.27025764]
[1746884369418,0.3051106,655.5,653.58,0.27025764]
[1746884370018,0.28068016,655.49,653.57,0.27025764]
[1746884370212,0.30512456,655.47,653.57,0.27025764]
[1746884370620,0.28068016,655.46,653.57,0.27025764]
[1746884370813,0.30513853,655.44,653.57,0.27025764]
[1746884371217,0.28068016,655.43,653.57,1.24472664]
[1746884371416,0.30515249,655.41,653.57,1.24472664]
[1746884371718,0.28068016,655.4,653.58,0.27025764]
[1746884371918,0.30516646,655.38,653.58,0.27025764]
[1746884372720,0.30516646,655.38,653.57,0.974469]
[1746884373021,0.28067193,655.37,653.58,0.27034571]
[1746884373219,0.30518043,655.35,653.58,0.27034571]
[1746884374021,0.30518043,655.35,653.59,0.974469]
[1746884374421,0.30518043,655.35,653.6,0.27034571]
[1746884376223,0.30518043,655.35,653.57,0.27034571]
[1746884376523,0.2657716,655.34,653.57,0.27034571]
[1746884376824,0.3051944,655.32,653.57,0.27034571]
[1746884377319,0.3051944,655.32,653.4,0.27034571]
[1746884377523,0.3051944,655.32,653.41,0.30608653]
[1746884377923,0.3051944,655.32,653.41,0.57173032]
[1746884378221,0.3051944,655.32,653.42,0.27034571]
[1746884378424,0.3051944,655.32,653.43,0.30607716]
[1746884379023,0.3051944,655.32,653.44,0.27034571]
[1746884379220,0.3051944,655.32,653.45,0.30606779]
[1746884380220,0.3051944,655.32,653.46,0.27034571]
[1746884380422,0.3051944,655.32,653.47,0.30605842]
[1746884381020,0.3051944,655.32,653.48,0.27034571]
[1746884381225,0.3051944,655.32,653.49,0.30604905]
[1746884381526,0.3051944,655.32,653.5,0.27034571]
[1746884381727,0.3051944,655.32,653.51,0.30603969]
[1746884382324,0.3051944,655.32,653.52,0.27034571]
[1746884382526,0.3051944,655.32,653.53,0.30603032]
[1746884382924,0.3051944,655.32,653.54,0.27034571]
[1746884383121,0.3051944,655.32,653.55,0.30602096]
[1746884383521,0.3051944,655.32,653.56,0.27034571]
[1746884383726,0.3051944,655.32,653.57,0.30601159]
[1746884384029,0.3051944,655.32,653.58,0.27034571]
[1746884384325,0.3051944,655.32,653.62,0.974469]
[1746884384523,0.3051944,655.32,653.63,0.3059835]
[1746884384721,0.3051944,655.32,653.64,0.27034571]
[1746884385031,0.3051944,655.32,653.65,0.30597414]
[1746884385427,0.3051944,655.32,653.66,0.27034571]
[1746884385627,0.3051944,655.32,653.67,0.30596478]
[1746884385826,0.3051944,655.32,653.68,0.27034571]
[1746884386027,0.3051944,655.32,653.68,0.57630581]
[1746884386525,0.3051944,655.32,653.69,0.27034571]
[1746884389034,0.3051944,655.32,653.7,0.30595074]
[1746884389226,0.3051944,655.32,653.71,0.27034571]
[1746884390732,0.3051944,655.32,653.72,0.30594138]
[1746884391234,0.3051944,655.32,653.73,0.27034571]
[1746884394437,0.3051944,655.32,653.73,0.57628241]
[1746884394630,0.3051944,655.32,653.74,0.57627773]
[1746884394835,0.3051944,655.32,653.75,0.30592734]
[1746884395035,0.3051944,655.32,653.76,0.27034571]
[1746884395236,0.3051944,655.32,653.77,0.30591798]
[1746884395537,0.3051944,655.32,653.78,0.27034571]
[1746884395736,0.3051944,655.32,653.79,0.30590862]
[1746884396236,0.3051944,655.32,653.8,0.27034571]
[1746884396438,0.3051944,655.32,653.81,0.30589926]
[1746884397240,0.3051944,655.32,653.82,0.27034571]
[1746884397434,0.3051944,655.32,653.83,0.30588991]
[1746884398042,0.3051944,655.32,653.84,0.27034571]
[1746884398339,0.3051944,655.32,653.85,0.30588055]
[1746884398639,0.3051944,655.32,653.86,0.27034571]
[1746884398841,0.3051944,655.32,653.87,0.30587119]
[1746884399035,0.3051944,655.32,653.88,0.27034571]
[1746884399339,0.3051944,655.32,653.89,0.30586184]
[1746884399741,0.3051944,655.32,653.9,0.27034571]
[1746884399936,0.3051944,655.32,653.9,0.57620287]
[1746884400342,0.3051944,655.32,653.91,0.57619819]
[1746884400537,0.3051944,655.32,653.92,0.57619352]
[1746884400943,0.3051944,655.32,653.93,0.27034571]
[1746884403439,0.3051944,655.32,653.85,0.27034571]
[1746884403637,0.28070267,655.31,653.85,0.27034571]
[1746884403839,0.30520838,655.29,653.84,0.26550394]
[1746884404138,0.28070267,655.28,653.84,0.26550394]
[1746884404345,0.30522235,655.26,653.84,0.26550394]
[1746884404846,0.28070267,655.25,653.84,0.26550394]
[1746884405044,0.30523632,655.23,653.84,0.26550394]
[1746884405642,0.28070267,655.22,653.84,0.26550394]
[1746884406539,0.3052503,655.2,653.84,0.26550394]
[1746884406846,0.28070267,655.19,653.84,0.26550394]
[1746884407040,0.30526428,655.17,653.84,0.26550394]
[1746884407738,0.28070267,655.16,653.84,0.26550394]
[1746884407939,0.30527826,655.14,653.84,0.26550394]
[1746884408345,0.28070267,655.13,653.84,0.26550394]
[1746884408545,0.30529224,655.11,653.84,0.26550394]
[1746884408946,0.28070267,655.1,653.84,0.26550394]
[1746884409146,0.30530622,655.08,653.84,0.26550394]
[1746884409544,0.28070267,655.07,653.84,0.26550394]
[1746884409947,0.28070267,655.07,652.97,0.974469]
[1746884410445,0.28070267,655.07,652.98,0.27102755]
[1746884410745,0.28070267,655.06,652.99,0.27102755]
[1746884410947,0.28070267,655.06,652.99,0.53706632]
[1746884411243,0.28070267,655.07,653.0,0.27102755]
[1746884411848,0.30535749,654.97,653.0,0.27102755]
[1746884412549,0.28070267,654.96,653.0,0.27102755]
[1746884412744,0.30537148,654.94,653.0,0.27102755]
[1746884413649,0.28070267,654.93,651.96,0.27102755]
[1746884413849,0.30544143,654.79,652.1,0.30670142]
[1746884414148,0.30544143,654.79,652.99,0.26613236]
[1746884414447,0.28070267,654.78,653.0,0.27102755]
[1746884414649,0.30545543,654.76,652.11,0.53717823]
[1746884415049,0.28070267,654.75,652.21,0.30664969]
[1746884415249,0.28070267,654.75,652.22,0.27102755]
[1746884415749,0.28070267,654.75,652.23,0.57766784]
[1746884415950,0.30551609,654.63,652.25,0.30663089]
[1746884416449,0.28070267,654.62,652.26,0.27102755]
[1746884416643,0.3055721,654.51,652.26,0.27102755]
[1746884416844,0.3055721,654.51,652.27,0.30662149]
[1746884417047,0.28070267,654.5,652.27,0.57764904]
[1746884417247,0.30562814,654.39,652.27,0.57764904]
[1746884417545,0.30562814,654.39,652.28,0.27102755]
[1746884417949,0.28070267,654.38,652.28,0.27102755]
[1746884418148,0.30567952,654.28,652.28,0.27102755]
[1746884418548,0.28070267,654.27,652.28,0.27102755]
[1746884418752,0.30569354,654.25,652.28,0.27102755]
[1746884419454,0.28070267,654.24,652.28,0.27102755]
[1746884419953,0.2663126,654.23,652.28,0.27102755]
[1746884420654,0.28070267,654.22,652.28,0.27102755]
[1746884421252,0.3057169,654.2,652.28,0.27102755]
[1746884421648,0.28070267,654.19,652.28,0.27102755]
[1746884421854,0.30573092,654.17,652.28,0.27102755]
[1746884422054,0.28070267,654.16,652.24,0.26633604]
[1746884422252,0.30574494,654.14,652.24,0.26633604]
[1746884422447,0.30574494,654.14,652.25,0.27102755]
[1746884422852,0.28070267,654.13,652.25,0.27102755]
[1746884423051,0.30575897,654.11,652.25,0.27102755]
[1746884423449,0.28070267,654.1,652.25,0.27102755]
[1746884423654,0.30577299,654.08,652.25,0.27102755]
[1746884424350,0.28070267,654.07,652.25,0.27102755]
[1746884424556,0.30578701,654.05,652.25,0.27102755]
[1746884425059,0.28070267,654.04,652.25,0.27102755]
[1746884425253,0.28070267,654.04,652.24,0.26638089]
[1746884425553,0.28070267,654.04,652.25,0.27102755]
[1746884425959,0.28070267,654.03,652.25,0.27102755]
[1746884426157,0.54711415,654.03,652.25,0.27102755]
[1746884426357,0.28070267,654.02,652.25,0.27102755]
[1746884428560,0.30581039,654.0,652.25,0.27102755]
[1746884428760,0.28070267,653.99,652.25,0.27102755]
[1746884428959,0.30582442,653.97,652.25,0.27102755]
[1746884429164,0.30582442,653.97,652.24,0.26638089]
[1746884429456,0.28070267,653.96,652.24,0.26638089]
[1746884429661,0.30583845,653.94,652.24,0.26638089]
[1746884430156,0.28070267,653.93,652.24,0.26638089]
[1746884430361,0.30585248,653.91,652.24,0.26638089]
[1746884431761,0.28070267,653.9,652.25,0.27220822]
[1746884431961,0.30586651,653.88,652.25,0.27220822]
[1746884432662,0.28070267,653.87,652.24,0.26638089]
[1746884432861,0.30588055,653.85,652.24,0.26638089]
[1746884433163,0.28070267,653.84,652.24,0.26638089]
[1746884433365,0.30589458,653.82,652.25,0.27244045]
[1746884433663,0.28070267,653.81,652.25,0.27244045]
[1746884433958,0.30590862,653.79,652.25,0.27244045]
[1746884434462,0.28070267,653.78,652.24,0.26638089]
[1746884434856,0.30592266,653.76,652.24,0.26638089]
[1746884435262,0.28070267,653.75,652.24,0.26638089]
[1746884435562,0.3059367,653.73,652.24,0.26638089]
[1746884435863,0.28070267,653.72,652.24,0.26638089]
[1746884436063,0.30595074,653.7,652.24,0.26638089]
[1746884436566,0.28070267,653.69,652.24,0.26638089]
[1746884436758,0.30596478,653.67,652.24,0.26638089]
[1746884436959,0.28070267,653.66,652.24,0.26638089]
[1746884437159,0.30597882,653.64,652.24,0.26638089]
[1746884437764,0.28070267,653.63,650.02,0.974469]
[1746884437964,0.30606779,653.45,652.19,0.26675661]
[1746884438265,0.30606779,653.45,650.2,0.30759766]
[1746884438466,0.28070267,653.44,650.2,0.30759766]
[1746884438765,0.30613806,653.3,650.2,0.30759766]
[1746884439068,0.30613806,653.3,650.21,0.53941165]
[1746884439261,0.30613806,653.3,650.36,0.30752198]
[1746884439964,0.30613806,653.3,650.37,0.27264073]
[1746884440166,0.28152804,653.29,650.51,0.30745107]
[1746884440367,0.30620368,653.16,650.51,0.30745107]
[1746884440766,0.30620368,653.16,650.52,0.27264073]
[1746884440969,0.26677706,653.15,650.64,0.30738964]
[1746884441168,0.30626464,653.03,650.64,0.30738964]
[1746884441369,0.30626464,653.03,650.65,0.27264073]
[1746884441571,0.30626464,653.03,650.67,0.30737547]
[1746884441965,0.30626464,653.03,650.68,0.27264073]
[1746884442166,0.30626464,653.03,650.7,0.3073613]
[1746884442770,0.30626464,653.03,650.71,0.27264073]
[1746884442970,0.30626464,653.03,650.73,0.30734713]
[1746884443372,0.30626464,653.03,650.74,0.27264073]
[1746884443571,0.30626464,653.03,650.76,0.30733296]
[1746884444072,0.26656862,653.02,650.76,0.30733296]
[1746884444272,0.30632093,652.91,650.77,0.27290824]
[1746884444574,0.30632093,652.91,650.79,0.30731879]
[1746884445773,0.30632093,652.91,650.8,0.27290824]
[1746884445972,0.30632093,652.91,650.82,0.30730463]
[1746884446575,0.30632093,652.91,650.83,0.27290824]
[1746884446774,0.30632093,652.91,650.84,0.30729518]
[1746884446975,0.30632093,652.91,650.84,0.58020342]
[1746884447374,0.30632093,652.91,650.85,0.27290824]
[1746884447569,0.30632093,652.91,650.86,0.30728574]
[1746884448471,0.30632093,652.91,650.87,0.27290824]
[1746884448978,0.30632093,652.91,650.88,0.27290824]
[1746884449177,0.30632093,652.91,650.86,0.30728574]
[1746884449477,0.28175136,652.9,650.87,0.27324864]
[1746884449675,0.30637254,652.8,650.87,0.27324864]
[1746884450574,0.28175136,652.79,650.87,0.27324864]
[1746884450878,0.30638662,652.77,650.87,0.27324864]
[1746884451078,0.30638662,652.77,650.54,0.27324864]
[1746884451378,0.28175136,652.76,650.55,0.27324864]
[1746884451579,0.30644296,652.65,650.55,0.27324864]
[1746884451772,0.30644296,652.65,650.54,0.27324864]
[1746884452281,0.28175136,652.64,650.54,0.27324864]
[1746884452578,0.30649462,652.54,650.54,0.27324864]
[1746884452780,0.28175136,652.53,650.54,0.27324864]
[1746884454079,0.30650871,652.51,650.54,0.27324864]
[1746884454281,0.28175136,652.5,650.54,0.27324864]
[1746884454481,0.3065228,652.48,650.54,0.27324864]
[1746884454979,0.28175136,652.47,650.53,0.26705753]
[1746884455281,0.28175136,652.47,650.54,0.27324864]
[1746884455984,0.30653689,652.45,650.54,0.27324864]
[1746884456682,0.28200225,652.44,650.54,0.27324864]
[1746884456885,0.30655099,652.42,650.54,0.27324864]
[1746884457581,0.28200225,652.41,650.54,0.27324864]
[1746884457778,0.28200225,652.41,650.53,0.26705753]
[1746884458286,0.30656509,652.39,650.53,0.26705753]
[1746884458483,0.30656509,652.39,650.54,0.27349415]
[1746884458690,0.28200225,652.38,650.54,0.27349415]
[1746884458988,0.30657918,652.36,650.54,0.27349415]
[1746884459388,0.28200225,652.35,650.54,0.27349415]
[1746884460389,0.30657918,652.36,650.54,0.27349415]
[1746884460791,0.30657918,652.36,650.56,0.30742744]
[1746884461391,0.30657918,652.36,650.57,0.27349415]
[1746884461589,0.30657918,652.36,650.58,0.27349415]
[1746884461990,0.30657918,652.36,650.59,0.27349415]
[1746884462391,0.30657918,652.36,650.6,0.27349415]
[1746884462794,0.30657918,652.36,650.61,0.27349415]
[1746884463095,0.30657918,652.36,650.62,0.27349415]
[1746884463394,0.30657918,652.36,650.63,0.27349415]
[1746884463993,0.30657918,652.36,650.64,0.27349415]
[1746884464297,0.30657918,652.36,650.65,0.27349415]
[1746884464596,0.30657918,652.36,650.66,0.27349415]
[1746884464992,0.30657918,652.36,650.67,0.27349415]
[1746884465396,0.30657918,652.36,650.68,0.27349415]
[1746884465899,0.30657918,652.36,650.58,0.26675865]
[1746884465900,0.30657918,652.36,650.69,0.27349415]
[1746884466397,0.30657918,652.36,650.7,0.27349415]
[1746884466899,0.30657918,652.36,650.71,0.27349415]
[1746884467099,0.30657918,652.36,650.72,0.27349415]
[1746884467598,0.30657918,652.36,650.73,0.27349415]
[1746884467795,0.30657918,652.36,650.74,0.27349415]
[1746884468199,0.30657918,652.36,650.75,0.27349415]
[1746884468500,0.30657918,652.36,650.76,0.27349415]
[1746884469099,0.30657918,652.36,650.77,0.27349415]
[1746884469296,0.30657918,652.36,650.78,0.27349415]
[1746884469700,0.30657918,652.36,650.79,0.27349415]
[1746884470095,0.30657918,652.36,650.8,0.27349415]
[1746884470396,0.30657918,652.36,650.81,0.27349415]
[1746884470694,0.30657918,652.36,650.82,0.27349415]
[1746884471103,0.30657918,652.36,650.83,0.27349415]
[1746884471399,0.30657918,652.36,650.84,0.27349415]
[1746884472002,0.30657918,652.36,650.85,0.27349415]
[1746884472401,0.30657918,652.36,650.86,0.27349415]
[1746884472995,0.30657918,652.36,650.88,0.3072763]
[1746884473902,0.30657918,652.36,650.89,0.27349415]
[1746884474201,0.30657918,652.36,650.9,0.27349415]
[1746884474503,0.30657918,652.36,650.92,0.30725742]
[1746884474896,0.30657918,652.36,650.93,0.27349415]
[1746884475097,0.5800126,655.23,650.93,0.27349415]
[1746884475304,0.30533418,655.02,650.95,0.30724325]
[1746884475601,0.28143651,655.01,650.96,0.27349415]
[1746884475902,0.30543211,654.81,650.98,0.3072291]
[1746884476298,0.28143651,654.8,650.99,0.27349415]
[1746884476697,0.86144911,654.79,651.0,0.27349415]
[1746884477203,0.86144911,654.78,651.01,0.27349415]
[1746884477503,0.86144911,654.77,651.02,0.27349415]
[1746884477699,0.28143651,654.76,651.03,0.27349415]
[1746884478003,0.28143651,654.75,651.04,0.27349415]
[1746884478206,0.28143651,654.74,651.05,0.27349415]
[1746884478405,0.28143651,654.73,651.06,0.27349415]
[1746884478605,0.28143651,654.72,651.07,0.27349415]
[1746884478903,0.28143651,654.71,651.08,0.27349415]
[1746884479108,0.28143651,654.71,651.1,0.30717247]
[1746884479706,0.28143651,654.7,651.1,0.30717247]
[1746884480006,0.54788063,654.7,651.1,0.30717247]
[1746884480508,0.28143651,654.69,651.11,0.27349415]
[1746884480908,0.28143651,654.68,651.12,0.27349415]
[1746884481307,0.28143651,654.67,651.13,0.27349415]
[1746884481610,0.28143651,654.66,651.14,0.27349415]
[1746884482107,0.28143651,654.65,651.15,0.27349415]
[1746884482707,0.28143651,654.64,651.16,0.27349415]
[1746884483003,0.54787859,654.64,651.16,0.27349415]
[1746884483307,0.28143651,654.63,651.17,0.27349415]
[1746884483704,0.28143651,654.63,651.18,0.27349415]
[1746884483908,0.26644208,654.64,651.18,0.27349415]
[1746884483909,0.28143651,654.62,651.18,0.27349415]
[1746884484109,0.28143651,654.61,651.19,0.27349415]
[1746884484508,0.28143651,654.6,651.2,0.27349415]
[1746884484906,0.28143651,654.59,651.21,0.27349415]
[1746884485407,0.28143651,654.58,651.22,0.27349415]
[1746884485909,0.28143651,654.57,651.23,0.27349415]
[1746884486209,0.54790919,654.57,651.23,0.27349415]
[1746884486703,0.28143651,654.56,651.24,0.27349415]
[1746884486910,0.28143651,654.56,651.26,0.30709701]
[1746884487311,0.28143651,654.55,651.27,0.27349415]
[1746884487512,0.28143651,654.54,651.27,0.27349415]
[1746884487812,0.28143651,654.54,651.29,0.30708286]
[1746884488004,0.28143651,654.53,651.29,0.30708286]
[1746884488307,0.28143651,654.52,651.3,0.27349415]
[1746884488810,0.28143651,654.51,651.31,0.27349415]
[1746884489012,0.28143651,654.5,651.32,0.27349415]
[1746884489411,0.28143651,654.49,651.33,0.27349415]
[1746884489710,0.28143651,654.48,651.34,0.27349415]
[1746884490010,0.28143651,654.47,651.35,0.27349415]
[1746884490512,0.28143651,654.46,651.36,0.27349415]
[1746884490808,0.28143651,654.45,651.37,0.27349415]
[1746884491311,0.28143651,654.44,651.38,0.27349415]
[1746884491813,0.28143651,654.43,651.38,0.27349415]
[1746884492009,0.54786737,654.43,651.39,0.27349415]
[1746884492207,0.28143651,654.42,651.39,0.27349415]
[1746884492412,0.28143651,654.41,651.4,0.27349415]
[1746884492812,0.28143651,654.4,651.41,0.27349415]
[1746884493217,0.28143651,654.39,651.42,0.27349415]
[1746884493715,0.28143651,654.42,651.43,0.27349415]
[1746884494014,0.28143651,654.8,651.44,0.27349415]
[1746884494315,0.28143651,654.8,651.46,0.30700273]
[1746884494514,0.28143651,654.79,651.46,0.30700273]
[1746884494714,0.28143651,654.78,651.47,0.27349415]
[1746884495010,0.28143651,654.77,651.47,0.27349415]
[1746884495214,0.28143651,654.77,651.49,0.30698859]
[1746884495415,0.30552542,654.61,651.49,0.30698859]
[1746884495709,0.28143651,654.6,651.5,0.27349415]
[1746884495910,0.28143651,654.6,651.51,0.30697917]
[1746884496215,0.30560012,654.45,651.51,0.58047332]
[1746884496407,0.28143651,654.44,651.52,0.27349415]
[1746884496713,0.28143651,654.43,651.53,0.27349415]
[1746884496914,0.30567485,654.29,651.55,0.30696032]
[1746884497718,0.28143651,654.28,651.56,0.27349415]
[1746884497918,0.30574027,654.15,651.58,0.30694619]
[1746884498318,0.28143651,654.14,651.59,0.27349415]
[1746884498618,0.28143651,654.14,651.61,0.30693206]
[1746884498811,0.30580104,654.02,651.61,0.30693206]
[1746884499014,0.28143651,654.01,651.62,0.27349415]
[1746884499418,0.28143651,654.01,651.63,0.27349415]
[1746884499714,0.28143651,654.01,651.64,0.27349415]
[1746884500017,0.28143651,654.01,651.65,0.27349415]
[1746884500312,0.28143651,654.01,651.61,0.30693206]
[1746884500313,0.28143651,654.01,651.66,0.27349415]
[1746884500618,0.28143651,654.01,651.72,0.974469]
[1746884500917,0.28143651,654.01,651.73,0.58036969]
[1746884501118,0.30585716,653.9,651.74,0.30687083]
[1746884501419,0.30585716,653.9,651.74,0.58036498]
[1746884501718,0.28143651,653.89,651.75,0.27349415]
[1746884501918,0.28143651,653.89,651.76,0.30686142]
[1746884502120,0.30590862,653.79,651.76,0.30686142]
[1746884502313,0.30590862,653.79,651.77,0.27349415]
[1746884502520,0.28143651,653.78,651.78,0.58034615]
[1746884502718,0.30592266,653.76,651.79,0.58034144]
[1746884503121,0.30592266,653.76,651.8,0.58033673]
[1746884503320,0.30592266,653.76,651.81,0.30683788]
[1746884503520,0.30592266,653.76,651.81,0.58033203]
[1746884503822,0.30592266,653.76,651.82,0.27349415]
[1746884504017,0.30592266,653.76,651.83,0.30682846]
[1746884504220,0.30592266,653.76,651.83,0.58032261]
[1746884504420,0.30592266,653.76,651.84,0.27349415]
[1746884504618,0.30592266,653.76,651.85,0.30681905]
[1746884504822,0.30592266,653.76,651.85,0.5803132]
[1746884505019,0.30592266,653.76,651.86,0.27349415]
[1746884505323,0.30592266,653.76,651.87,0.58030378]
[1746884505521,0.30592266,653.76,651.88,0.30680493]
[1746884505721,0.30592266,653.76,651.88,0.58029908]
[1746884505923,0.30592266,653.76,651.89,0.27349415]
[1746884506122,0.30592266,653.76,651.9,0.30679552]
[1746884506323,0.30592266,653.76,651.91,0.27349415]
[1746884506525,0.30592266,653.76,651.91,0.58028496]
[1746884506725,0.30592266,653.76,651.91,0.30679081]
[1746884507127,0.30592266,653.76,651.92,0.2718714]
[1746884507726,0.30592266,653.76,651.93,0.2718714]
[1746884507927,0.30592266,653.76,651.94,0.2718714]